Cogmind - Beta 13 @@@ ROGUE MODE // 2024.04.13 @ 15:38:35 Player: Flex Pexico Result: Destroyed by as-16362 with Assembled Rifle Performance ------------- Evolutions (0) 0 Regions Visited (4) 800 Robots Destroyed (23) 115 Value Destroyed (405) 405 Prototype IDs (23) 460 Alien Tech Used (0) 0 Bonus (352) 352 TOTAL SCORE: 2132 Bonus ------- Follower Combat Kills 60 Aligned with FarCom 300 Friendly Fire -8 Cogmind --------- Core Integrity 0/250 Matter 216/300 Energy 68/100 System Corruption 0% Temperature Cool (0) Movement Treading (320) Ox2 Location -9/Mines Parts ------- > --- POWER (1) -------- (None) > --- PROPULSION (2) --- Light Treads Light Treads > --- UTILITY (2) ------ Huge Storage Unit Signal Interpreter > --- WEAPON (2) ------- Grenade Launcher Grenade Launcher > --- INVENTORY (25) --- Improved Heat Sink High-capacity Matter Pod (200) Sensor Array Improved Terrain Scanner Seismic Detector Core Shielding EM Pulse Gun Longsword +1 Peak State ------------ > --- POWER ------------ (None) > --- PROPULSION ------- Light Treads Compact Wheel > --- UTILITY ---------- Huge Storage Unit Signal Interpreter > --- WEAPON ----------- EM Pulse Gun Longsword +1 > --- INVENTORY -------- Light Treads Light Treads Improved Heat Sink High-capacity Matter Pod Sensor Array Improved Terrain Scanner Seismic Detector Core Shielding Beamcaster Light Cannon Grenade Launcher Grenade Launcher [Rating: 15] Favorites ----------- Power Ion Engine Engine Ion Engine Propulsion Light Treads Treads Light Treads Leg Aluminum Leg Wheel Wheel Utility Huge Storage Unit Device Seismic Detector Storage Huge Storage Unit Processor Signal Interpreter Weapon Light Assault Rifle Energy Gun EM Pulse Gun Ballistic Gun Light Assault Rifle Ballistic Cannon Light Cannon Launcher Grenade Launcher Special Weapon Mining Laser Slashing Weapon Longsword +1 Build | -11 -10 -10 -10 -9 ------- Run | Yrd Mat Min Exi Min Slots Evolved . | . . . . . Power . | . . . . . Propulsion . | . . . . . Utility . | . . . . . Weapon . | . . . . . Parts Attached 36 | 9 15 5 3 4 Power 1 | 1 . . . . Engine 1 | 1 . . . . Core . | . . . . . Reactor . | . . . . . Propulsion 17 | 2 12 1 . 2 Treads 7 | . 5 . . 2 Leg 2 | 2 . . . . Wheel 8 | . 7 1 . . Hover . | . . . . . Flight . | . . . . . Utility 6 | 2 2 2 . . Device 3 | 1 1 1 . . Storage 2 | 1 1 . . . Processor 1 | . . 1 . . Hackware . | . . . . . Protection . | . . . . . Artifact . | . . . . . Weapon 12 | 4 1 2 3 2 Energy Gun 6 | 3 1 1 1 . Energy Cannon . | . . . . . Ballistic Gun 1 | 1 . . . . Ballistic Cannon 1 | . . . 1 . Launcher 2 | . . . . 2 Special Weapon 1 | . . 1 . . Impact Weapon . | . . . . . Slashing Weapon 1 | . . . 1 . Piercing Weapon . | . . . . . Special Melee Weapon . | . . . . . Unidentified Prototypes . | . . . . . Parts Lost 9 | . 1 4 . 4 Power 1 | . . 1 . . Propulsion 3 | . . 1 . 2 Utility . | . . . . . Weapon 5 | . 1 2 . 2 Highest Loss Streak 4 | . 1 3 . 4 To Critical Strikes . | . . . . . Average Slot Usage (%) 94 | . 97 96 85 84 Engine 10 | . 14 11 . . Treads 12 | . 11 14 14 14 Leg 1 | . 2 . . . Wheel 14 | . 14 14 14 13 Device 7 | . 11 3 . . Storage 14 | . 14 14 14 14 Processor 5 | . . 10 14 14 Energy Gun 16 | . 14 16 27 13 Ballistic Gun 10 | . 14 11 . . Naked Turns . | . . . . . Heaviest Build 89 | 14 89 89 88 88 Greatest Support 26 | 20 26 16 16 16 Greatest Overweight (x) 8 | . 8 8 5 5 Average Overweight (x) 5 | . 6 6 5 5 Largest Inventory Capacity 25 | 8 25 25 25 25 Average Capacity 23 | 7 23 25 25 25 Most Carried 13 | 6 12 13 13 12 Average Carried 9 | 4 7 11 12 11 Final Capacity 25 | 8 25 25 25 25 Final Carried 12 | 6 12 12 12 8 Class Distribution -------------------- 100% | Mutant Dominant Class ---------------- Mutant | -10/Materials Mutant | -10/Mines Mutant | -10/Exiles Mutant | -9/Mines Resources | -11 -10 -10 -10 -9 ----------- Run | Yrd Mat Min Exi Min Matter Collected 748 | 189 499 60 . . Remotely . | . . . . . Salvage Created 678 | 91 490 95 . 2 Parts 43 | 4 38 1 . . Haulers Intercepted 2 | . 2 . . . Recyclers Shooed 3 | . 2 . . 1 Parts Field Recycled . | . . . . . Retrieved Matter . | . . . . . Parts Self-Destructed . | . . . . . Prevented . | . . . . . Kills | -11 -10 -10 -10 -9 ------- Run | Yrd Mat Min Exi Min Combat Hostiles Destroyed 13 | . 12 1 . . Guns 13 | . 12 1 . . Classes Destroyed 7 | 2 5 . . . Worker 1 | . 1 . . . Tunneler 4 | 2 1 . . 1 Hauler 2 | . 2 . . . Recycler 2 | 1 . 1 . . Watcher 1 | . 1 . . . Swarmer 6 | . 6 . . . Grunt 7 | . 6 1 . . Best Kill Streak 3 | 3 3 2 . 1 Combat Bots Only 3 | . 3 1 . . Max Kills in Single Turn 1 | 1 1 1 . 1 Gunslinging . | . . . . . Exploded . | . . . . . Melee . | . . . . . Uniques/NPCs Destroyed . | . . . . . Combat | -11 -10 -10 -10 -9 -------- Run | Yrd Mat Min Exi Min Hostile Shots Fired 100 | . 68 13 . 19 Missed 36 | . 24 6 . 6 Damage Taken 1110 | . 427 184 . 499 Core 253 | . 79 81 . 93 Absorbed by Shields . | . . . . . Core Remaining (%) 100 | 100 . . . . Volleys Fired 79 | 8 59 10 . 2 Largest 2 | 2 2 2 . 2 Hottest 140 | 70 70 140 . 65 Shots Fired 157 | 16 118 19 . 4 Gun 151 | 16 118 17 . . Cannon 1 | . . . . 1 Launcher 3 | . . . . 3 Special 2 | . . 2 . . Kinetic 75 | 8 59 7 . 1 Thermal 66 | 8 56 2 . . Explosive 3 | . . . . 3 Electromagnetic 13 | . 3 10 . . Robot Hit Streak 13 | 5 12 9 . 13 Robot Miss Streak 5 | 1 5 1 . . Penetration Max . | . . . . . Secondary Targets 1 | . 1 . . . Max Gunslinging Chain 1 | . 1 . . . Shots Hit Robots 106 | 11 77 14 . 4 Core Hits 51 | 5 32 6 . 8 Critical Kills . | . . . . . Critical Parts Destroyed . | . . . . . Critical Strikes 6 | 2 4 . . . Burn 6 | 2 4 . . . Melee Attacks . | . . . . . Impact . | . . . . . Slashing . | . . . . . Piercing . | . . . . . Sneak Attacks . | . . . . . Combat Hostiles . | . . . . . Follow-up Attacks . | . . . . . Damage Inflicted 1305 | 131 820 204 . 150 Guns 1085 | 131 820 134 . . Cannons 18 | . . . . 18 Explosions 178 | . . 46 . 132 Melee . | . . . . . Ramming . | . . . . . Kinetic 410 | 56 292 44 . 18 Thermal 648 | 75 503 70 . . Explosive 132 | . . . . 132 Electromagnetic 115 | . 25 90 . . Impact . | . . . . . Slashing . | . . . . . Piercing . | . . . . . Highest Corruption . | . . . . . Average Corruption . | . . . . . Corruption Purged . | . . . . . Corruption Blocked . | . . . . . Overload Shots . | . . . . . Overflow Damage . | . . . . . Projectiles . | . . . . . Explosions . | . . . . . Melee . | . . . . . Knockbacks . | . . . . . Impact . | . . . . . Kinetic . | . . . . . Secondary . | . . . . . Self-Inflicted Damage 32 | . . 32 . . Shots 1 | . . 1 . . Rammed . | . . . . . Targets Rammed . | . . . . . Kicked . | . . . . . Crushed . | . . . . . Highest Temperature 148 | 90 148 45 . . Average Temperature 49 | 35 55 19 . . Received Heat Transfer 207 | . 132 75 . . Siege Activations . | . . . . . Robots Corrupted . | . . . . . Combat Hostiles . | . . . . . Parts Fried . | . . . . . Impact Corruptions . | . . . . . Robots Melted . | . . . . . Combat Hostiles . | . . . . . Parts Melted 7 | 1 6 . . . Heat Transferred 2196 | 370 1776 50 . . Parts Sabotaged . | . . . . . Parts Stolen . | . . . . . Parts Stripped . | . . . . . Power Chain Reactions 1 | . . 1 . . Alert | -11 -10 -10 -10 -9 ------- Run | Yrd Mat Min Exi Min Peak Influence 146 | 15 146 85 . 6 Initial 15 | . 9 15 . . Average 43 | 4 64 17 . . Maximum Alert Level . | . . . . . Low Security (%) 100 | 100 100 100 . 100 Level 1 . | . . . . . Level 2 . | . . . . . Level 3 . | . . . . . Level 4 . | . . . . . Level 5 . | . . . . . High Security . | . . . . . Max Security . | . . . . . Squads Dispatched 2 | . 2 . . . Investigation . | . . . . . Extermination . | . . . . . Reinforcement 2 | . 2 . . . Assault . | . . . . . Garrison . | . . . . . Intercept . | . . . . . Searches Triggered . | . . . . . Construction Impeded . | . . . . . Haulers Reinforced . | . . . . . Active Scanning Responses . | . . . . . Cargo Convoy Interrupts . | . . . . . Stealth | -11 -10 -10 -10 -9 --------- Run | Yrd Mat Min Exi Min Distress Signals 3 | . 3 . . . Communications Jammed . | . . . . . Distress Signals . | . . . . . Times Spotted 32 | . 22 4 . 6 Peak Tracking Total 6 | . 4 2 . 6 Tactical Retreats 3 | . 2 1 . . Traps | -11 -10 -10 -10 -9 ------- Run | Yrd Mat Min Exi Min Traps Triggered 2 | . 2 . . . Indirectly . | . . . . . Trap Hack Attempts . | . . . . . Triggered . | . . . . . Disarmed . | . . . . . Reprogrammed . | . . . . . Reused . | . . . . . Traps Extracted . | . . . . . Installed . | . . . . . Triggered . | . . . . . Machines | -11 -10 -10 -10 -9 ---------- Run | Yrd Mat Min Exi Min Machines Disabled 2 | . . 2 . . Max in Single Turn . | . . . . . Machines Repaired . | . . . . . Machines Dismantled . | . . . . . Machines Sabotaged . | . . . . . Overloaded Fab Kills . | . . . . . Hacking | -11 -10 -10 -10 -9 --------- Run | Yrd Mat Min Exi Min Machines Accessed 5 | . 3 . 2 . Terminals 3 | . 3 . . . Fabricators . | . . . . . Repair Stations . | . . . . . Recycling Units . | . . . . . Scanalyzers . | . . . . . Garrison Access . | . . . . . Total Hacks 10 | . 5 . 5 . Successful 7 | . 2 . 5 . Failed 3 | . 3 . . . Catastrophic 1 | . 1 . . . Database Lockouts . | . . . . . Manual 6 | . 5 . 1 . Terminals 5 | . 5 . . . Fabricators . | . . . . . Repair Stations . | . . . . . Recycling Units . | . . . . . Scanalyzers . | . . . . . Garrison Access . | . . . . . Terminal Hacks 5 | . . . 5 . Record 4 | . . . 4 . Derelict Proto ID Bank 1 | . . . 1 . Fabricator Hacks . | . . . . . Repair Station Hacks . | . . . . . Recycling Unit Hacks . | . . . . . Scanalyzer . | . . . . . Garrison Access Hacks . | . . . . . Unauthorized Hacks 2 | . 2 . . . Terminals 2 | . 2 . . . Botnet 2 | . 2 . . . Fabricators . | . . . . . Repair Stations . | . . . . . Recycling Units . | . . . . . Scanalyzers . | . . . . . Garrison Access . | . . . . . Data Cores Recovered . | . . . . . Used . | . . . . . Hacking Detections 2 | . 2 . . . Full Trace Events . | . . . . . Feedback Events . | . . . . . Feedback Blocked . | . . . . . Robot Schematics Acquired . | . . . . . Robots Built . | . . . . . Authchips . | . . . . . Time . | . . . . . Total Robot Build Rating . | . . . . . Part Schematics Acquired . | . . . . . Parts Built . | . . . . . Authchips . | . . . . . Time . | . . . . . Total Part Build Rating . | . . . . . Parts Repaired . | . . . . . Time . | . . . . . Parts Recycled . | . . . . . Recycled Matter . | . . . . . Retrieved Matter . | . . . . . Retrieved Components . | . . . . . Parts Scanalyzed . | . . . . . Part Schematics Acquired . | . . . . . Parts Damaged . | . . . . . Bothacking | -11 -10 -10 -10 -9 ------------ Run | Yrd Mat Min Exi Min Used RIF Installer . | . . . . . Robots Hacked . | . . . . . Non-combat . | . . . . . Combat . | . . . . . Robot Hacks Applied . | . . . . . Relay Couplers Released . | . . . . . Fabnet Peak Effective % . | . . . . . Robots Rewired . | . . . . . Allies Hacked . | . . . . . Hacks Repelled . | . . . . . Allies | -11 -10 -10 -10 -9 -------- Run | Yrd Mat Min Exi Min Total Allies 2 | . . 2 . . Largest Group 2 | . . 2 . . Highest-Rated Group 46 | . . 46 . . Highest-Rated Ally 31 | . . 31 . . Total Orders . | . . . . . Ally Attacks 8 | . . 8 . . Total Damage 172 | . . 172 . . Kills 3 | . . 3 . . Allies Corrupted . | . . . . . Allies Melted . | . . . . . Intel | -11 -10 -10 -10 -9 ------- Run | Yrd Mat Min Exi Min Robot Analysis Total . | . . . . . Derelict Logs Recovered 2 | . . 1 . 1 Drone Launches . | . . . . . Drone Recoveries . | . . . . . Exploration | -11 -10 -10 -10 -9 ------------- Run | Yrd Mat Min Exi Min Turns Passed 3322 | 96 1748 885 388 205 Spaces Moved 1579 | 52 750 448 219 110 Core 13 | 13 . . . . Treads . | . . . . . Legs 127 | 39 88 . . . Wheels 1439 | . 662 448 219 110 Hover . | . . . . . Flight . | . . . . . Fastest Speed 50 | 50 120 175 175 175 Average Speed 178 | 102 182 183 175 175 Slowest Speed 200 | 120 200 200 175 175 Overloaded Moves . | . . . . . Propulsion Burnouts . | . . . . . Robots Hopped . | . . . . . Cave-ins Triggered . | . . . . . Exploration Rate (%) 53 | 4 97 80 60 24 Regions Visited 4 Branch Regions 3 Pre-discovered Areas 2 | . . . 1 1 Known Exits Taken 2 | . . 1 1 . Unknown Exits Taken 2 | 1 1 . . . Scrap Searched 2 | . . 2 . . Spaces Dug . | . . . . . Terrain Destroyed 10 | . . 2 . 8 Melee . | . . . . . Projectile . | . . . . . AOE 10 | . . 2 . 8 Terrain Rammed . | . . . . . Walls Destroyed . | . . . . . Machines Disabled . | . . . . . Actions | -11 -10 -10 -10 -9 --------- Run | Yrd Mat Min Exi Min Total 1929 | 78 1022 488 223 118 Wait 209 | . 185 22 . 2 Move 1575 | 51 749 447 218 110 Hop . | . . . . . Pick Up 25 | 9 11 4 1 . Fast Attach 4 | 4 . . . . Attach 14 | 4 2 4 . 4 Detach 1 | 1 . . . . Swap 18 | 1 13 1 3 . Drop 4 | . 3 . 1 . Fire 79 | 8 59 10 . 2 Melee . | . . . . . Ram . | . . . . . Kick . | . . . . . Crush . | . . . . . Escape Stasis . | . . . . . Rewire . | . . . . . Trap . | . . . . . Miscellaneous . | . . . . . Route ------- -11/Scrapyard -10/Materials (discovered 5 exits: *Mat x3 / [*Min] / *Sub) -10/Mines (discovered 4 exits: *Mat x2 / *Exi / *Sub) -10/Exiles -9/Mines History --------- Turn | Location | Event 11 | -11/Scrapyard | Discovered new exit (range 15) 97 | -11/Scrapyard | Entered Materials 313 | -10/Materials | Build established: Mutant 493 | -10/Materials | Discovered new exit (range 15) 984 | -10/Materials | Discovered new exit (range 10) 1047 | -10/Materials | Discovered new exit (range 13) 1147 | -10/Materials | Discovered new exit (range 15) 1724 | -10/Materials | Discovered new exit (range 15) 1845 | -10/Materials | Entered Mines 2002 | -10/Mines | Discovered new exit (range 13) 2069 | -10/Mines | Discovered new exit (range 5) 2078 | -10/Mines | Identified exit to Subcaves 2384 | -10/Mines | A weapon hastily lodged in a ceiling crevice suddenly fell to the ground 2555 | -10/Mines | Learned Materials emergency access door positions 2570 | -10/Mines | Core integrity fell below 50% 2627 | -10/Mines | Lost 3 parts (1p2w) 2666 | -10/Mines | Discovered new exit (range 5) 2671 | -10/Mines | Identified exit to Materials 2723 | -10/Mines | Deemed a non-threat by the Exiles lab entrance 2723 | -10/Mines | Discovered new exit (range 5) 2729 | -10/Mines | Identified exit to Exiles 2730 | -10/Mines | Entered Exiles 2772 | -10/Exiles | Met 8R-AWN 2804 | -10/Exiles | Met EX-HEX 2855 | -10/Exiles | Met EX-BIN 2876 | -10/Exiles | Aligned with FarCom system 2877 | -10/Exiles | Given EX-Vault access code 2918 | -10/Exiles | Opened EX-Vault 2932 | -10/Exiles | Found Longsword +1 2970 | -10/Exiles | Warned to stay clear of 0b10 Research branches 2990 | -10/Exiles | Exiles lab attacked by MAIN.C 3035 | -10/Exiles | Learned location of Zion (-7) 3097 | -10/Exiles | Discovered new exit (range 14) 3116 | -10/Exiles | Identified exit to Mines 3118 | -10/Exiles | Left Exiles lab with Longsword +1 3118 | -10/Exiles | Entered Mines 3180 | -9/Mines | Learned location of Storage (-8) 3289 | -9/Mines | Assembled infested the area 3294 | -9/Mines | Assisted by a Guerilla fighting off Assembled 3309 | -9/Mines | Core integrity fell below 20% 3323 | -9/Mines | Destroyed by as-16362 with Assembled Rifle Last Messages --------------- coming from, and they're closing on this area, come on!" AM-PHS destroyed. K-01 Serf destroyed. Lgt. Treads destroyed. HV Slug penetrates Wall. The unstable cave ceiling collapses. OF-D6G(h) destroyed. R-06 Scavenger collects Terrain Scan Processor. The unstable cave ceiling collapses. Com. Wheel destroyed. Beamcaster destroyed. The unstable cave ceiling collapses. Lgt. Cannon destroyed. as-07722 destroyed. as-35135 destroyed. R-06 Scavenger destroyed. T-07 Excavator destroyed. The unstable cave ceiling collapses. K-01 Serf collects debris. Map ----- +----------------------------------------------------+ | ?????????????????????????????????????????????????? | | ?????????????????????????????????????????????????? | | ?????????????????????????????????????????????????? | | ????????????????????????# ??????????????????????? | | ???????????????????????# ? ???????????????????? | | ??????????????????????# ?????????????????? | | ????????????##???????# ??????????????????? | | ?????###++## ##??????# ???????????????????? | | ?????# ???????? #???????????????????? | | ?????# ????????? ###?????????????????? | | ???### ??????????X ??????????????????? | | ??## #??????????? ???????????????????? | | ??# #####?????### %k ????????????????????? | | ??# #?????# #????????????????????? | | ???# #### #????? #????????????????????? | | ???### ##??# #????## #????????????????????? | | ?????## #???# ###### ????????????????????? | | ??????# #???# * d #???#????????????????? | | ??????# #???######## d #?? ?????????????????? | | ?????## #??????????## a #? ??????????????????? | | ????## #??????##### % #%#??????????????????? | | ????# #?????## ]# ##?????????????????? | | ???## #????## ;#?????????????????? | | ??## #????# ##?????????????????? | | ?## #????# #??????????????????? | | ?# ##????## @a #??????????????????? | | ?# #??????#### #??????????????????? | | ?# ##?????????# #??????????????????? | | ?# ##?????????# #??????????????????? | | ?# #?????????##### ##??????????????????? | | ?# ##????????????# ????g??????????????? | | ?## #????????????### #??????????????????? | | ??### ##??????????????## ##??????????????????? | | ????## #????????????????######????b??????????????? | | ?????# #?????????????????????????????????????????? | | ?????# #?????????????????????????????????????????? | | ?????# #?????????????????????????????????????????? | | ?????# #?????????????????????????????????????????? | | ?????# #?????????????????????????????????????????? | | ?????# #?????????????????????????????????????????? | | ?????# #?????????????????????????????????????????? | | ?????# #?????????????????????????????????????????? | | ??#### #?????????????????????????????????????????? | | ??# #?????????????????????????????????????????? | | ??# ## #?????????????????????????????????????????? | | ??# ## #?????????????????????????????????????????? | | ??# ## ##????????????????????????????????????????? | | ??# ##???????????????????????????????????????? | | ?## #???????????????????????????????????????? | | ?# #???????????????????????????????????????? | +----------------------------------------------------+ Best States ------------- Heat Dissipation 25 Energy Generation 10 Energy Capacity 250 Matter Stores 300 Matter Capacity 300 Sight Range 16 Terrain Scan Density 10 Evasion (%) 55 Recoil Reduction 2 Item Schematics ----------------- None Robot Schematics ------------------ None Fabricated ------------ Nothing Alien Tech Used ----------------- None Achievements -------------- None Challenges ------------ None Game ------ Seed DeepCommBlaster Manual? 0 Play Time 00:21:27 Cumulative 58.2 hours Start 2024.04.13 @ 12:21:37 End 2024.04.13 @ 15:38:35 Sessions 2 Manual Loads 0 Difficulty Rogue Special Mode None Game No. 58 Rogue 58 Adventurer 0 Explorer 0 Win Type - Total 0 Types 0/0/0/0/0/0/0/0/0 Lore% 31 Gallery% 42 Achievement% 32 Wizard Run 0 Options --------- Layout 2 ASCII 0 Keyboard 0 Movement Mouse Keybinds 0 Fullscreen 2 Font 24/Smallcaps Map View 50x44 Zoom Use 0% Tactical HUD 0 Map Filters NONE Filters NONE Steam 1 RUN: 554a18a9-8fa2-4057-9a70-d80289d6f403